bitfinex/quotes_BTCUSD_20241208
["timestamp","ask_amount","ask_price","bid_price","bid_amount"]
[1733664273664,0.45786424,100180.0,100170.0,0.10089481]
[1733664273900,0.46086424,100180.0,100170.0,0.10089481]
[1733664274580,0.50986424,100180.0,100160.0,0.0017304]
[1733664274786,0.31070469,100170.0,100160.0,0.10175991]
[1733664274987,0.304994,100170.0,100160.0,0.10175991]
[1733664276309,0.304994,100170.0,100160.0,0.10375991]
[1733664276310,0.31391695,100170.0,100160.0,0.10375991]
[1733664276544,0.304994,100170.0,100160.0,0.10375991]
[1733664276980,0.304994,100170.0,100160.0,0.10175991]
[1733664278067,0.305994,100170.0,100160.0,0.10175991]
[1733664278504,0.305994,100170.0,100150.0,0.0006657]
[1733664278505,0.458712,100160.0,100150.0,0.0006657]
[1733664278714,0.508712,100160.0,100150.0,0.0006657]
[1733664279134,0.5132603,100160.0,100150.0,0.0006657]
[1733664279571,0.229348,100140.0,100130.0,0.07495912]
[1733664279785,0.308748,100140.0,100130.0,0.17498863]
[1733664279996,0.38025426,100140.0,100130.0,0.17498863]
[1733664280209,0.53025426,100140.0,100130.0,0.17498863]
[1733664280932,0.53031186,100140.0,100130.0,0.17498863]
[1733664282007,0.46348896,100140.0,100130.0,0.17498863]
[1733664282436,0.46548896,100140.0,100130.0,0.17498863]
[1733664283834,0.47561138,100140.0,100130.0,0.17498863]
[1733664284714,0.49552617,100140.0,100130.0,0.17498863]
[1733664289385,0.47561138,100140.0,100130.0,0.17498863]
[1733664290094,0.00674096,100140.0,100130.0,0.42875322]
[1733664290310,0.0020576,100140.0,100130.0,0.42775463]
[1733664291576,5.76e-05,100140.0,100130.0,0.42775463]
[1733664291982,0.0010576,100140.0,100130.0,0.43575463]
[1733664292478,0.0010576,100140.0,100130.0,0.43775463]
[1733664293109,0.0010576,100140.0,100130.0,0.43575463]
[1733664293360,0.0010576,100140.0,100130.0,0.44175463]
[1733664297137,0.0010576,100140.0,100130.0,0.59175463]
[1733664297343,0.001731,100150.0,100140.0,0.229748]
[1733664297560,0.001731,100150.0,100140.0,0.32977751]
[1733664298606,0.001731,100150.0,100140.0,0.33377751]
[1733664298847,0.002731,100150.0,100140.0,0.36377751]
[1733664299092,0.1285,100160.0,100140.0,0.36377751]
[1733664299093,0.1295306,100180.0,100170.0,0.252694]
[1733664299321,0.1295306,100180.0,100170.0,0.35272351]
[1733664300213,0.0803306,100180.0,100170.0,0.35272351]
[1733664300477,0.08044538,100180.0,100170.0,0.35572351]
[1733664300898,0.00184538,100180.0,100170.0,0.35572351]
[1733664303288,0.00184538,100180.0,100170.0,0.35672351]
[1733664304158,0.00184538,100180.0,100170.0,0.36683088]
[1733664306615,0.00184538,100180.0,100170.0,0.35672351]
[1733664308668,0.00184538,100180.0,100170.0,0.40672351]
[1733664309016,0.00184538,100180.0,100170.0,0.57552351]
[1733664309434,0.00184538,100180.0,100170.0,0.57012351]
[1733664309638,0.00184538,100180.0,100170.0,0.55672351]
[1733664309847,0.00184538,100180.0,100170.0,0.50272351]
[1733664310077,0.00284538,100180.0,100170.0,0.51172351]
[1733664310306,0.00384538,100180.0,100170.0,0.51872351]
[1733664310977,3.8e-07,100180.0,100170.0,0.63752351]
[1733664311185,1.8e-07,100190.0,100180.0,0.56042011]
[1733664311395,0.00057475,100190.0,100180.0,0.66044962]
[1733664311587,0.00053475,100190.0,100180.0,0.88145392]
[1733664311782,0.00053475,100190.0,100180.0,1.20733492]
[1733664312016,7.5e-07,100190.0,100180.0,1.20733492]
[1733664312232,0.07112095,100200.0,100190.0,0.1]
[1733664312449,0.03120095,100200.0,100190.0,0.72131363]
[1733664312680,9.5e-07,100200.0,100190.0,0.74940791]
[1733664312958,9.5e-07,100200.0,100190.0,1.20766531]
[1733664313597,9.5e-07,100200.0,100190.0,0.75440791]
[1733664314546,9.5e-07,100210.0,100200.0,0.50264]
[1733664314949,0.0117308,100230.0,100220.0,0.273]
[1733664315131,0.0117308,100230.0,100220.0,0.5839452]
[1733664316025,0.0117308,100230.0,100220.0,0.5889452]
[1733664316867,0.0117308,100230.0,100220.0,0.5909452]
[1733664318004,0.0117308,100230.0,100220.0,0.6409452]
[1733664318180,0.0017314,100240.0,100230.0,0.3859801]
[1733664318181,2e-07,100240.0,100230.0,0.3859801]
[1733664318388,2e-07,100240.0,100230.0,0.67899561]
[1733664319227,0.0017306,100250.0,100240.0,0.323]
[1733664319435,0.0017306,100250.0,100240.0,0.60259851]
[1733664319567,0.0017306,100250.0,100240.0,0.63563027]
[1733664321416,0.0017306,100250.0,100240.0,0.64463027]
[1733664321977,0.0017306,100250.0,100240.0,0.52663027]
[1733664322099,0.0017306,100250.0,100240.0,0.49359851]
[1733664323342,0.0017306,100250.0,100240.0,0.51659851]
[1733664323587,0.0017306,100250.0,100240.0,0.54963027]
[1733664324254,0.0017306,100250.0,100240.0,0.55987331]
[1733664328610,0.0017306,100250.0,100240.0,0.60978631]
[1733664329251,0.0017306,100250.0,100240.0,0.35375455]
[1733664329478,0.0793306,100250.0,100240.0,0.21394251]
[1733664329720,0.3057816,100250.0,100240.0,0.12402951]
[1733664329937,0.31502701,100250.0,100240.0,0.12402951]
[1733664330346,0.31502701,100250.0,100240.0,0.11502951]
[1733664330636,0.31502701,100250.0,100240.0,0.12402951]
[1733664330817,0.31502701,100250.0,100240.0,0.11002951]
[1733664331190,0.31502701,100250.0,100240.0,0.11302951]
[1733664331603,0.31502701,100250.0,100240.0,0.11002951]
[1733664332831,0.3057816,100250.0,100240.0,0.11002951]
[1733664333061,0.31501582,100250.0,100240.0,0.11002951]
[1733664333332,0.3057816,100250.0,100240.0,0.11002951]
[1733664333492,0.3057816,100250.0,100230.0,0.00017264]
[1733664333493,0.304369,100240.0,100230.0,0.00017264]
[1733664333693,0.31360683,100240.0,100230.0,0.10020215]
[1733664333903,0.454369,100240.0,100230.0,0.10020215]
[1733664334753,0.454369,100240.0,100230.0,0.10120215]
[1733664335754,0.454369,100240.0,100230.0,0.07874449]
[1733664337683,0.454369,100240.0,100230.0,0.07844449]
[1733664339025,0.304369,100240.0,100230.0,0.07844449]
[1733664339897,0.3060984,100240.0,100230.0,0.07844449]
[1733664341758,0.1265294,100240.0,100230.0,0.25803049]
[1733664343490,0.3060984,100240.0,100230.0,0.07844449]
[1733664344153,0.31526662,100240.0,100230.0,0.07844449]
[1733664344601,0.31526662,100240.0,100230.0,0.25803049]
[1733664345212,0.13569762,100240.0,100230.0,0.25803049]
[1733664345386,0.13569762,100240.0,100230.0,0.33103049]
[1733664347324,0.1265294,100240.0,100230.0,0.33103049]
[1733664351071,0.1265294,100240.0,100230.0,0.33189519]
[1733664352583,0.0017294,100240.0,100230.0,0.33189519]
[1733664358605,0.1322294,100240.0,100230.0,0.07930919]
[1733664358855,0.4617984,100240.0,100230.0,0.07930919]
[1733664359093,0.47098153,100240.0,100230.0,0.07930919]
[1733664359544,0.4617984,100240.0,100230.0,0.07930919]
[1733664364266,0.47171981,100240.0,100230.0,0.07930919]
[1733664364470,0.47171981,100240.0,100230.0,0.0018647]
[1733664364471,0.52171981,100240.0,100230.0,0.0018647]
[1733664364626,0.62153515,100240.0,100230.0,0.0018647]
[1733664365269,0.62809365,100240.0,100230.0,0.0018647]
[1733664365482,0.62809365,100240.0,100230.0,0.0008647]
[1733664365677,0.62153515,100240.0,100230.0,0.0008647]
[1733664365890,0.62809365,100240.0,100230.0,0.0018647]
[1733664366096,0.64783301,100240.0,100230.0,0.0018647]
[1733664366330,0.54801767,100240.0,100230.0,0.0018647]
[1733664366552,0.49801767,100240.0,100230.0,0.0018647]
[1733664366779,0.49145917,100240.0,100230.0,0.0018647]
[1733664367449,0.05,100230.0,100220.0,0.0008647]
[1733664367683,0.511786,100230.0,100220.0,0.00103747]
[1733664368881,0.61160134,100230.0,100220.0,0.00103747]
[1733664369260,0.511786,100230.0,100220.0,0.00103747]
[1733664369501,0.511786,100230.0,100220.0,0.10106698]
[1733664369502,0.461786,100230.0,100220.0,0.10106698]
[1733664370214,0.47060362,100230.0,100220.0,0.10106698]
[1733664372800,0.32060362,100230.0,100220.0,0.10106698]
[1733664373041,0.311786,100230.0,100220.0,0.10106698]
[1733664373703,0.32059939,100230.0,100220.0,0.10106698]
[1733664373919,0.311786,100230.0,100220.0,0.10106698]
[1733664376275,0.311786,100230.0,100220.0,0.00103747]
[1733664376276,0.61160134,100230.0,100220.0,0.00103747]
[1733664376539,0.511786,100230.0,100220.0,0.00103747]
[1733664376779,0.52059797,100230.0,100220.0,0.00103747]
[1733664376993,0.47059797,100230.0,100220.0,0.00103747]
[1733664377629,0.0779,100190.0,100180.0,0.229663]
[1733664377877,0.257558,100190.0,100180.0,0.15060408]
[1733664378552,0.257558,100190.0,100180.0,0.10060408]
[1733664379661,0.257558,100190.0,100180.0,0.10160408]
[1733664379862,0.257558,100190.0,100180.0,0.10060408]
[1733664380361,0.260558,100190.0,100180.0,0.10060408]
[1733664381006,0.003,100190.0,100180.0,0.15060408]
[1733664381246,0.003,100190.0,100180.0,0.33028008]
[1733664381474,0.003,100190.0,100180.0,0.38925785]
[1733664382181,0.0779,100210.0,100200.0,0.17964]
[1733664382391,0.0779,100210.0,100200.0,0.27966951]
[1733664383052,0.0779,100210.0,100200.0,0.32966951]
[1733664383709,0.0809,100210.0,100200.0,0.32966951]
[1733664384973,0.0779,100210.0,100200.0,0.32966951]
[1733664385354,0.0779,100210.0,100200.0,0.33066951]
[1733664391231,0.0779,100210.0,100200.0,0.35366951]
[1733664393758,0.1249,100220.0,100200.0,0.71291951]
[1733664393966,0.1249,100220.0,100210.0,0.27965151]
[1733664394753,0.0777,100220.0,100210.0,0.27965151]
[1733664394971,0.0777,100220.0,100210.0,0.32965151]
[1733664395846,0.0807,100220.0,100210.0,0.32965151]
[1733664396060,0.0777,100220.0,100210.0,0.32965151]
[1733664396510,0.003,100220.0,100210.0,0.50926351]
[1733664396717,0.003,100220.0,100210.0,0.51012891]
[1733664398668,0.003,100220.0,100210.0,0.53312891]
[1733664399942,0.003,100220.0,100210.0,0.54942891]
[1733664401810,0.0017308,100230.0,100220.0,0.252604]
[1733664402055,0.0017308,100230.0,100220.0,0.35263351]
[1733664403069,0.0017308,100230.0,100220.0,0.35280629]
[1733664403279,0.0017308,100230.0,100220.0,0.35380629]
[1733664406605,0.0017308,100230.0,100220.0,0.36390055]
[1733664410827,0.0017308,100230.0,100220.0,0.39931567]
[1733664411036,0.0017308,100230.0,100220.0,0.43152835]
[1733664411270,0.0017308,100230.0,100220.0,0.58152835]
[1733664412787,0.0017308,100230.0,100220.0,0.670108]
[1733664413036,0.0017308,100230.0,100220.0,1.21165302]
[1733664413271,0.0017308,100230.0,100220.0,1.5716818]
[1733664413272,8e-07,100230.0,100220.0,1.5716818]
[1733664413476,8e-07,100230.0,100220.0,1.55811791]
[1733664413706,8e-07,100230.0,100220.0,1.26165302]
[1733664413932,8e-07,100230.0,100220.0,1.29236345]
[1733664414365,8e-07,100230.0,100220.0,1.43756876]
[1733664414573,8e-07,100230.0,100220.0,1.44656876]
[1733664414787,8e-07,100230.0,100220.0,1.39156876]
[1733664415013,8e-07,100230.0,100220.0,1.57425323]
[1733664415234,8e-07,100230.0,100220.0,1.57925323]
[1733664415488,8e-07,100230.0,100220.0,1.55605907]
[1733664415709,8e-07,100230.0,100220.0,1.52435907]
[1733664416207,8e-07,100230.0,100220.0,1.57683724]
[1733664416422,8e-07,100230.0,100220.0,1.35538811]
[1733664416867,8e-07,100230.0,100220.0,1.35455081]
[1733664417071,8e-07,100230.0,100220.0,1.38963676]
[1733664419000,8e-07,100230.0,100220.0,1.21282412]
[1733664419413,8e-07,100230.0,100220.0,1.21368952]
[1733664420893,8e-07,100230.0,100220.0,0.88734587]
[1733664421802,8e-07,100230.0,100220.0,0.75473639]
[1733664422992,8e-07,100230.0,100220.0,0.70473639]
[1733664423197,8e-07,100230.0,100220.0,0.61633007]
[1733664423411,8e-07,100230.0,100220.0,0.59606458]
[1733664423641,8e-07,100230.0,100220.0,0.50576595]
[1733664423642,0.0829008,100230.0,100220.0,0.50576595]
[1733664423886,0.0829008,100230.0,100220.0,0.35576595]
[1733664424621,8e-07,100230.0,100220.0,0.34676595]
[1733664424829,8e-07,100230.0,100220.0,0.37876595]
[1733664425046,8e-07,100230.0,100220.0,0.52876595]
[1733664425305,8e-07,100230.0,100220.0,0.52276595]
[1733664425743,8e-07,100230.0,100220.0,0.52676595]
[1733664429041,0.0829008,100230.0,100220.0,0.52676595]
[1733664429256,0.0829008,100230.0,100220.0,0.37676595]
[1733664429492,0.0829008,100230.0,100220.0,0.34367169]
[1733664430706,0.0829008,100230.0,100220.0,0.36667169]
[1733664433362,0.0829008,100230.0,100220.0,0.51667169]
[1733664434541,0.0829008,100230.0,100220.0,0.60507801]
[1733664434764,0.0829008,100230.0,100220.0,0.51667169]
[1733664435438,0.0829008,100230.0,100220.0,0.60507801]
[1733664436121,0.0829008,100230.0,100220.0,0.63589589]
[1733664436325,0.0829008,100230.0,100220.0,0.76850574]
[1733664436444,0.0829008,100230.0,100220.0,1.09538516]
[1733664438060,0.0829008,100230.0,100220.0,1.2721978]
[1733664439392,0.0829008,100230.0,100220.0,1.24137955]
[1733664440025,0.0829008,100230.0,100220.0,1.06549407]
[1733664440243,0.0829008,100230.0,100220.0,1.24277928]
[1733664442243,0.0829008,100230.0,100220.0,1.4643858]
[1733664443397,0.0829008,100230.0,100220.0,1.46447517]
[1733664443634,0.0829008,100230.0,100220.0,1.5175946]
[1733664444492,0.0829008,100230.0,100220.0,1.46432004]
[1733664444700,0.0829008,100230.0,100220.0,1.46539556]
[1733664445540,0.0829008,100230.0,100220.0,1.46541281]
[1733664446244,0.0829008,100230.0,100220.0,1.33226519]
[1733664446451,0.0820008,100230.0,100220.0,1.33226519]
[1733664446881,0.0820008,100230.0,100220.0,1.33229806]
[1733664448443,0.0820008,100230.0,100220.0,1.24372122]
[1733664449336,0.0820008,100230.0,100220.0,1.27456062]
[1733664450263,0.0017294,100240.0,100230.0,0.302586]
[1733664450477,0.0017294,100240.0,100230.0,1.07144814]
[1733664450679,0.0017294,100240.0,100230.0,1.22153363]
[1733664450894,0.0017294,100240.0,100230.0,1.48779438]
[1733664451339,0.0017294,100240.0,100230.0,1.26591042]
[1733664452251,0.0017294,100240.0,100230.0,1.65906106]
[1733664452497,4e-07,100240.0,100230.0,1.44480031]
[1733664452706,0.0017306,100250.0,100240.0,0.302569]
[1733664452934,0.0017306,100250.0,100240.0,1.21259274]
[1733664453412,0.0017306,100250.0,100240.0,1.60574338]
[1733664453693,0.0017306,100250.0,100240.0,1.21259274]
[1733664454129,0.0017306,100250.0,100240.0,1.21759274]
[1733664456095,0.0017306,100250.0,100240.0,1.21959274]
[1733664458340,0.0017306,100250.0,100240.0,1.26959274]
[1733664458568,6e-07,100250.0,100240.0,1.32271217]
[1733664459223,6e-07,100250.0,100240.0,1.7155932]
[1733664459456,6e-07,100250.0,100240.0,1.71559743]
[1733664459675,6e-07,100250.0,100240.0,1.32244679]
[1733664460105,6e-07,100250.0,100240.0,1.71559743]
[1733664460338,6e-07,100250.0,100240.0,1.32244679]
[1733664462817,0.1296304,100260.0,100250.0,0.402551]
[1733664463030,4e-07,100260.0,100250.0,1.45087434]
[1733664463241,2e-07,100270.0,100260.0,0.53893114]
[1733664463453,2e-07,100270.0,100260.0,1.26287711]
[1733664464616,0.00011493,100270.0,100260.0,1.45324962]
[1733664465573,0.00011493,100270.0,100260.0,1.36454648]
[1733664465787,0.00011493,100270.0,100260.0,1.37354648]
[1733664466000,0.00011493,100270.0,100260.0,1.37954648]
[1733664466418,0.00011493,100270.0,100260.0,1.43266591]
[1733664467100,0.00011493,100270.0,100260.0,1.48260708]
[1733664467338,0.00011493,100270.0,100260.0,1.43260708]
[1733664467556,0.00011493,100270.0,100260.0,1.56517687]
[1733664467763,0.00011493,100270.0,100260.0,1.61517687]
[1733664468195,0.00011493,100270.0,100260.0,1.63498578]
[1733664468408,0.00011493,100270.0,100260.0,1.58498578]
[1733664469579,0.00011493,100270.0,100260.0,1.67332625]
[1733664471366,0.1283306,100280.0,100260.0,1.67332625]
[1733664471614,0.1283306,100280.0,100270.0,0.50254451]
[1733664473003,0.1283306,100280.0,100270.0,0.54794265]
[1733664473357,0.1283306,100280.0,100270.0,0.55194265]
[1733664475040,0.1283306,100280.0,100270.0,0.33602951]
[1733664475364,0.1283306,100280.0,100270.0,0.11302951]
[1733664475571,0.1283306,100280.0,100270.0,0.16302951]
[1733664475781,0.3078276,100280.0,100270.0,0.16302951]
[1733664475986,0.1283306,100280.0,100270.0,0.16302951]
[1733664476367,0.1283306,100280.0,100270.0,0.15002951]
[1733664476741,0.3078276,100280.0,100270.0,0.15002951]
[1733664476941,0.3078276,100280.0,100270.0,0.17402951]
[1733664477170,0.3078276,100280.0,100270.0,0.10102951]
[1733664480279,0.3078276,100280.0,100270.0,0.10002951]
[1733664480957,0.309115,100270.0,100260.0,0.00103778]
[1733664482044,0.307751,100250.0,100240.0,0.05]
[1733664482296,0.307751,100250.0,100240.0,0.10020234]
[1733664482509,0.307751,100250.0,100240.0,0.00017283]
[1733664482973,0.31647927,100250.0,100240.0,0.00017283]
[1733664483123,0.307751,100250.0,100240.0,0.00017283]
[1733664484407,0.310751,100250.0,100240.0,0.00017283]
[1733664485881,0.307751,100250.0,100240.0,0.00017283]
[1733664486106,0.1322,100250.0,100240.0,0.35377134]
[1733664487005,0.1282,100250.0,100240.0,0.35277134]
[1733664487493,0.0844,100250.0,100240.0,0.35377134]
[1733664487708,0.0804,100250.0,100240.0,0.35277134]
[1733664489717,0.0804,100250.0,100240.0,0.35463644]
[1733664490895,0.0804,100250.0,100240.0,0.15206744]
[1733664491150,0.307751,100250.0,100240.0,0.15206744]
[1733664491766,0.307751,100250.0,100240.0,0.10206744]
[1733664492635,0.307751,100250.0,100240.0,0.15206744]
[1733664492836,0.1282,100250.0,100240.0,0.33163644]
[1733664493039,0.1282,100250.0,100240.0,0.10206744]
[1733664493040,0.307751,100250.0,100240.0,0.10206744]
[1733664494042,0.307751,100250.0,100240.0,0.15206744]
[1733664495316,0.307751,100250.0,100240.0,0.10206744]
[1733664498806,0.35237381,100250.0,100240.0,0.10206744]
[1733664499025,0.35237381,100250.0,100240.0,0.00203793]
[1733664499922,0.35237381,100250.0,100240.0,0.00103793]
[1733664500362,0.35537381,100250.0,100240.0,0.00103793]
[1733664500591,0.35237381,100250.0,100240.0,0.00103793]
[1733664500797,0.35637381,100250.0,100240.0,0.00203793]
[1733664501770,0.50637381,100250.0,100240.0,0.00203793]
[1733664504269,0.461751,100250.0,100240.0,0.10206744]
[1733664505674,0.311751,100250.0,100240.0,0.10206744]
[1733664506884,0.311751,100250.0,100240.0,0.09706744]
[1733664507115,0.307751,100250.0,100240.0,0.09706744]
[1733664508000,0.310751,100250.0,100240.0,0.09706744]
[1733664510420,0.40382415,100250.0,100240.0,0.09706744]
[1733664511570,0.1312,100250.0,100240.0,0.09706744]
[1733664511810,0.1312,100250.0,100240.0,0.27663644]
[1733664512931,0.1282,100250.0,100240.0,0.27663644]
[1733664513381,0.1282,100250.0,100240.0,0.27763644]
[1733664515039,0.1282,100250.0,100240.0,0.27850154]
[1733664518863,0.0804,100250.0,100240.0,0.27850154]
[1733664523153,0.259951,100250.0,100240.0,0.09893254]
[1733664523362,0.37501742,100250.0,100240.0,0.09893254]
[1733664523808,0.308251,100250.0,100240.0,0.09893254]
[1733664526246,0.358251,100250.0,100240.0,0.0018651]
[1733664526473,0.508251,100250.0,100240.0,0.0018651]
[1733664526689,0.5099818,100250.0,100240.0,0.0018651]
[1733664526931,0.51973311,100250.0,100240.0,0.0018651]
[1733664527153,0.61954845,100250.0,100240.0,0.0018651]
[1733664528069,0.61954845,100250.0,100240.0,0.0008651]
[1733664528502,0.62454845,100250.0,100240.0,0.0018651]
[1733664532464,0.64420328,100250.0,100240.0,0.0018651]
[1733664534345,0.58445197,100250.0,100240.0,0.0018651]
[1733664534557,0.1354308,100250.0,100240.0,0.10189461]
[1733664534765,0.3149818,100250.0,100240.0,0.10189461]
[1733664534977,0.32371295,100250.0,100240.0,0.10189461]
[1733664535175,0.3149818,100250.0,100240.0,0.10189461]
[1733664535611,0.3187131,100250.0,100240.0,0.10089461]
[1733664536040,0.3217131,100250.0,100240.0,0.10089461]
[1733664537903,0.32171319,100250.0,100240.0,0.10089461]
[1733664539252,0.09386219,100250.0,100240.0,0.28046361]
[1733664540087,0.0851308,100250.0,100240.0,0.27671349]
[1733664542263,0.0851308,100250.0,100240.0,0.46781349]
[1733664542264,0.0047308,100250.0,100240.0,0.46781349]
[1733664542483,0.0047308,100250.0,100240.0,1.12713404]
[1733664542703,0.0047308,100250.0,100240.0,1.4181317]
[1733664542953,0.0047308,100250.0,100240.0,1.52730574]
[1733664543160,0.0047308,100250.0,100240.0,1.3299995]
[1733664543587,0.0017308,100250.0,100240.0,1.3299995]
[1733664544865,0.0017308,100250.0,100240.0,1.55167361]
[1733664545108,0.0017308,100250.0,100240.0,1.52086674]
[1733664545320,0.0017308,100250.0,100240.0,1.55659771]
[1733664545544,0.0017308,100250.0,100240.0,1.56059771]
[1733664545755,0.0017308,100250.0,100240.0,1.56159771]
[1733664545964,0.0017308,100250.0,100240.0,1.56059771]
[1733664546185,0.0017308,100250.0,100240.0,1.56959771]
[1733664546414,0.0017308,100250.0,100240.0,1.56559771]
[1733664546634,0.0017308,100250.0,100240.0,1.46763064]
[1733664546898,0.0017308,100250.0,100240.0,1.30538243]
[1733664547348,0.0017308,100250.0,100240.0,1.57159771]
[1733664547656,0.0017308,100250.0,100240.0,1.48200752]
[1733664547890,0.0017308,100250.0,100240.0,1.32427621]
[1733664548335,0.0017308,100250.0,100240.0,1.5014793]
[1733664549315,0.0017308,100250.0,100240.0,1.5023447]
[1733664551411,0.0017308,100250.0,100240.0,1.63518618]
[1733664553214,0.0017308,100250.0,100240.0,1.63917718]
[1733664554300,0.0017308,100250.0,100240.0,1.64210191]
[1733664556086,0.0017308,100250.0,100240.0,1.73060117]
[1733664556521,0.0017308,100250.0,100240.0,1.64210191]
[1733664556730,0.0017308,100250.0,100240.0,1.73058399]
[1733664557180,0.0017308,100250.0,100240.0,1.72937924]
[1733664557613,0.0017308,100250.0,100240.0,0.78338849]
[1733664557814,0.0017308,100250.0,100240.0,1.7293203]
[1733664559785,0.0017308,100250.0,100240.0,1.6408444]
[1733664560207,0.0017308,100250.0,100240.0,1.33117875]
[1733664560436,0.0017302,100260.0,100250.0,0.05]
[1733664560658,0.0017302,100260.0,100250.0,0.97482546]
[1733664560886,0.0017302,100260.0,100250.0,1.30042876]
[1733664561986,0.0017302,100260.0,100250.0,1.30413902]
[1733664562480,0.0017302,100260.0,100250.0,1.42233902]
[1733664562695,0.0017302,100260.0,100250.0,1.69337349]
[1733664563343,0.0017302,100260.0,100250.0,1.70237349]
[1733664563555,0.0017302,100260.0,100250.0,1.6139597]
[1733664563973,0.0017302,100260.0,100250.0,1.48133902]
[1733664564384,0.0017302,100260.0,100250.0,1.61387214]
[1733664564616,0.0017302,100260.0,100250.0,1.65997214]
[1733664565532,0.0017302,100260.0,100250.0,1.52743902]
[1733664565743,0.0017302,100260.0,100250.0,1.63233902]
[1733664565948,0.0017302,100260.0,100250.0,1.6562822]
[1733664566534,0.0017302,100260.0,100250.0,1.65544728]
[1733664567342,0.0017302,100260.0,100250.0,1.68613023]
[1733664567501,0.0017302,100260.0,100250.0,1.65544728]
[1733664568185,0.0017302,100260.0,100250.0,1.60544728]
[1733664568393,0.0017302,100260.0,100250.0,1.6861364]
[1733664568520,0.0017302,100260.0,100250.0,1.77441103]
[1733664568763,0.0017302,100260.0,100250.0,1.7744124]
[1733664568958,0.0017302,100260.0,100250.0,1.5631364]
[1733664569144,0.0017302,100260.0,100250.0,1.61679251]
[1733664569350,0.0017302,100260.0,100250.0,1.64749278]
[1733664569782,0.0017302,100260.0,100250.0,1.39601098]
[1733664569991,0.0017302,100260.0,100250.0,1.43174195]
[1733664570392,0.0017302,100260.0,100250.0,1.45474195]
[1733664570621,0.0017302,100260.0,100250.0,1.43544828]
[1733664570828,0.0017302,100260.0,100250.0,1.48544828]
[1733664571517,0.0017302,100260.0,100250.0,1.48512933]
[1733664572625,0.0017302,100260.0,100250.0,1.43512933]
[1733664572843,0.0017302,100260.0,100250.0,1.49500093]
[1733664573869,0.0017302,100270.0,100260.0,0.06936811]
[1733664574281,0.0017302,100270.0,100260.0,0.39372001]
[1733664574475,0.0017302,100270.0,100260.0,0.57225586]
[1733664574723,8e-07,100280.0,100270.0,0.49888311]
[1733664574943,8e-07,100280.0,100270.0,1.35331905]
[1733664575158,8e-07,100280.0,100270.0,1.62672513]
[1733664575382,8e-07,100280.0,100270.0,1.4943276]
[1733664575622,8e-07,100280.0,100270.0,1.62669293]
[1733664575833,8e-07,100280.0,100270.0,1.5992276]
[1733664576265,8e-07,100280.0,100270.0,1.42269756]
[1733664576705,8e-07,100280.0,100270.0,1.59917872]
[1733664577184,8e-07,100280.0,100270.0,1.60317872]
[1733664577424,8e-07,100280.0,100270.0,1.69550526]
[1733664577613,0.0017306,100290.0,100280.0,0.53459608]
[1733664577853,0.0017306,100290.0,100280.0,1.09999898]
[1733664578071,0.0017306,100290.0,100280.0,1.64651943]
[1733664578285,0.0017306,100290.0,100280.0,1.71341943]
[1733664578500,0.0017306,100290.0,100280.0,1.76341943]
[1733664578720,0.0017306,100290.0,100280.0,1.76341569]
[1733664578936,0.0017306,100290.0,100280.0,1.76358856]
[1733664579141,0.0017306,100290.0,100280.0,1.76758856]
[1733664579360,0.0017306,100290.0,100280.0,1.69938856]
[1733664579586,0.0017306,100290.0,100280.0,1.65068856]
[1733664580265,0.0017306,100290.0,100280.0,1.65268856]
[1733664581158,0.0017306,100290.0,100280.0,1.56446283]
[1733664582424,0.0017306,100290.0,100280.0,1.51446283]
[1733664583253,0.0017306,100290.0,100280.0,1.38211862]
[1733664583958,0.11785383,100300.0,100290.0,0.44884711]
[1733664584165,0.11785383,100300.0,100290.0,0.80711955]
[1733664584368,0.11785383,100300.0,100290.0,1.13301553]
[1733664585246,0.11785383,100300.0,100290.0,1.30947448]
[1733664585460,0.11785383,100300.0,100290.0,1.30977633]
[1733664585639,0.11785383,100300.0,100290.0,1.13317529]
[1733664585849,0.11785383,100300.0,100290.0,1.3096931]
[1733664586054,0.11785383,100300.0,100290.0,1.13311238]
[1733664586862,0.11785383,100300.0,100290.0,1.3096931]
[1733664589149,0.11785383,100300.0,100290.0,1.2596931]
[1733664589366,0.23865383,100300.0,100290.0,1.2596931]
[1733664589792,0.23865383,100300.0,100290.0,1.27958743]
[1733664590667,0.23865383,100300.0,100290.0,1.27995068]
[1733664591355,0.23865383,100300.0,100290.0,1.10328127]
[1733664592991,0.23865383,100300.0,100290.0,1.12328127]
[1733664593525,0.23865383,100300.0,100290.0,1.11324898]
[1733664595195,0.23865383,100300.0,100290.0,1.11411398]
[1733664595611,0.23865383,100300.0,100290.0,1.11404604]
[1733664596601,0.23865383,100300.0,100290.0,1.2906935]
[1733664597204,0.23865383,100300.0,100290.0,1.11404604]
[1733664597792,0.23865383,100300.0,100290.0,1.2906935]
[1733664598193,0.23865383,100300.0,100290.0,1.11404604]
[1733664598577,0.23865383,100300.0,100290.0,1.2906935]
[1733664600476,0.23865383,100300.0,100290.0,1.29092735]
[1733664601660,0.19335383,100300.0,100290.0,1.29092735]
[1733664601879,0.11785383,100300.0,100290.0,1.34092735]
[1733664602413,0.11785383,100300.0,100290.0,1.56180805]
[1733664602814,0.11785383,100300.0,100290.0,1.58180805]
[1733664604712,0.11785383,100300.0,100290.0,1.49345577]
[1733664605385,5e-08,100300.0,100290.0,1.85474301]
[1733664605636,5e-08,100300.0,100290.0,1.56708557]
[1733664605853,0.1463,100330.0,100320.0,0.352425]
[1733664606076,0.1463,100330.0,100320.0,0.49882262]
[1733664606548,0.2286,100330.0,100320.0,0.49882262]
[1733664606959,0.2286,100330.0,100320.0,0.30245451]
[1733664607164,0.22917493,100330.0,100320.0,0.34882262]
[1733664607370,0.22917493,100330.0,100320.0,0.12302951]
[1733664607617,0.40858193,100330.0,100320.0,0.10002951]
[1733664608092,0.42132775,100330.0,100320.0,0.10002951]
[1733664608427,0.42132775,100330.0,100300.0,0.22092872]
[1733664608428,0.308043,100310.0,100300.0,0.22092872]
[1733664608650,0.308043,100310.0,100300.0,0.32095823]
[1733664609224,0.31715387,100310.0,100300.0,0.32095823]
[1733664609332,0.308043,100310.0,100300.0,0.32095823]
[1733664609729,0.31167489,100310.0,100300.0,0.32095823]
[1733664609932,0.32077817,100310.0,100300.0,0.22092872]
[1733664610213,0.41168639,100310.0,100300.0,0.09282872]
[1733664610448,0.40258311,100310.0,100300.0,0.09282872]
[1733664610651,0.31167489,100310.0,100300.0,0.10182872]
[1733664610898,0.36167489,100310.0,100300.0,0.10182872]
[1733664611105,0.36167489,100310.0,100300.0,0.01472872]
[1733664611354,0.36167489,100310.0,100300.0,0.01572872]
[1733664611577,0.45167278,100310.0,100300.0,0.01972872]
[1733664612024,0.45167278,100310.0,100300.0,0.01572872]
[1733664613676,0.46021753,100310.0,100300.0,0.01572872]
[1733664613911,0.56661726,100310.0,100300.0,0.01572872]
[1733664614095,0.308061,100300.0,100290.0,0.3985367]
[1733664614351,0.31169289,100300.0,100290.0,0.49856621]
[1733664614585,0.0823,100300.0,100290.0,0.67804521]